fUSD/lending_fUSD_20240205
["ID","MTS","AMOUNT","RATE_DAILY","PERIOD"]
[313327897,1707161454050,-609.62,0.00041643,7]
[313327898,1707161454062,-500.0,0.00041643,7]
[313327899,1707161454073,-670.92,0.00041643,7]
[313327900,1707161454087,-500.0,0.00041643,7]
[313327901,1707161454100,-500.0,0.00041643,7]
[313327902,1707161454112,-1000.0,0.00041643,7]
[313327903,1707161454124,-1000.0,0.00041643,7]
[313327904,1707161454136,-1809.16,0.00041643,7]
[313327905,1707161454145,-1314.85,0.00041643,5]
[313327906,1707161454154,-1499.56,0.00041643,7]
[313327907,1707161454165,-1573.94,0.00041643,7]
[313327908,1707161454175,-834.46,0.00041643,7]
[313327909,1707161454184,-1580.41,0.00041643,7]
[313327910,1707161454194,-500.0,0.00041643,7]
[313327911,1707161454203,-500.0,0.00041643,7]
[313327912,1707161454426,-500.0,0.00041643,7]
[313327913,1707161454442,-500.0,0.00041643,7]
[313327914,1707161454451,-500.0,0.00041643,7]
[313327915,1707161454462,-500.0,0.00041643,7]
[313327916,1707161454473,-393.59968601,0.00041643,7]
[313327917,1707161454484,-1788.86,0.00041643,7]
[313327918,1707161454493,-665.49,0.00041643,7]
[313327919,1707161454502,-500.57,0.00041643,7]
[313327920,1707161454511,-500.0,0.00041643,2]
[313327921,1707161454520,-500.0,0.00041643,7]
[313327922,1707161454529,-500.0,0.00041643,7]
[313327923,1707161454538,-500.0,0.00041643,7]
[313327924,1707161454548,-500.0,0.00041643,7]
[313327925,1707161454557,-6953.52,0.00041643,7]
[313327926,1707161454566,-500.0,0.00041643,7]
[313327927,1707161454575,-594.23,0.00041643,7]
[313327928,1707161454584,-500.0,0.00041643,7]
[313327929,1707161454593,-500.0,0.00041643,7]
[313327930,1707161454602,-643.79,0.00041643,7]
[313327931,1707161454611,-1787.48,0.00041643,7]
[313327932,1707161454621,-626.24,0.00041643,7]
[313327933,1707161454631,-1058.6,0.00041643,5]
[313327934,1707161454640,-500.0,0.00041643,7]
[313327935,1707161454649,-500.0,0.00041643,7]
[313327936,1707161454659,-151.0,0.00041643,14]
[313327937,1707161454668,-500.0,0.00041643,7]
[313327938,1707161454677,-151.0,0.00041643,14]
[313327939,1707161454687,-12499.48,0.00041643,7]
[313327940,1707161454697,-1008.11,0.00041643,7]
[313327941,1707161454706,-500.0,0.00041643,7]
[313327942,1707161454715,-151.0,0.00041643,14]
[313327943,1707161454725,-252.563958,0.00041643,14]
[313327944,1707161454734,-152.86670709,0.00041751,3]
[313327945,1707161454743,-345.6688899,0.00041751,3]
[313327946,1707161454752,-1552.04067233,0.00041751,4]
[313327947,1707161454760,-1512.22412686,0.00041751,3]
[313327948,1707161454769,-981.73973109,0.00041751,4]
[313327949,1707161454778,-1423.92992661,0.00041778,10]
[313327950,1707161454787,-1501.58582611,0.00041807,4]
[313327951,1707161454795,-1124.63383169,0.00041894,5]
[313327952,1707161454805,-2323.619582,0.000419,33]
[313327953,1707161454814,-2001.22,0.000419,2]
[313327954,1707161454823,-1982.297405,0.000419,15]
[313327955,1707161454832,-1000.0,0.000419,30]
[313327956,1707161454841,-2210.15969125,0.00041915,4]
[313327957,1707161454850,-909.10790134,0.00041915,4]
[313327958,1707161454860,-216.22962887,0.00041915,4]
[313327959,1707161454871,-861.05364966,0.00041915,2]
[313327960,1707161454882,-449.37840466,0.00041916,4]
[313327961,1707161454892,-24710.84363669,0.00041924,4]
[313327962,1707161454901,-2364.83541332,0.00041973,16]
[313327963,1707161454910,-31214.91077104,0.00041987,5]
[313327964,1707161454919,-331.82563408,0.00041989,3]
[313327965,1707161454928,-242.85775935,0.00041989,3]
[313327966,1707161454937,-331.82563408,0.00041989,3]
[313327967,1707161454947,-242.85775935,0.00041989,3]
[313327968,1707161454956,-2145891.56667034,0.0004199,3]
[313327969,1707161454966,-5374.74275441,0.0004199,3]
[313327970,1707161454976,-151.0,0.0004199,14]
[313327971,1707161454985,-50000.0,0.00042,22]
[313327972,1707161454995,-16398.88808956,0.00042,2]
[313327973,1707161455004,-737.02424718,0.00042,4]
[313327974,1707161455013,-1168.37452931,0.00042,4]
[313327975,1707161455022,-2716.64,0.00042,60]
[313327976,1707161455031,-600.0,0.00042,43]
[313327977,1707161455041,-2000.0,0.00042,2]
[313327978,1707161455050,-9523.99999901,0.00042,2]
[313327979,1707161455059,-6037.82,0.00042,30]
[313327980,1707161455068,-3000.0,0.00042,4]
[313327981,1707161455077,-402.81418111,0.00042,30]
[313327982,1707161455088,-350.0,0.00042,17]
[313327983,1707161455098,-200.0,0.00042,49]
[313327984,1707161455107,-789.0264754,0.00042,2]
[313327985,1707161455116,-1150.0,0.00042,30]
[313327986,1707161455126,-275.5,0.00042,3]
[313327987,1707161455135,-214.778605,0.00042,17]
[313327988,1707161455144,-666.0,0.000421,4]
[313327989,1707161455153,-2810.4,0.000421,7]
[313327990,1707161455163,-3609.7,0.000421,7]
[313327991,1707161455173,-8876.94,0.000421,7]
[313327992,1707161455182,-468.0,0.00042102,2]
[313327993,1707161455191,-1000.0,0.00042109,15]
[313327994,1707161455201,-14790.58867859,0.00042109,4]
[313327995,1707161455210,-500.0,0.00042191,7]
[313327996,1707161455219,-500.0,0.00042191,7]
[313327997,1707161455229,-500.0,0.00042191,7]
[313327998,1707161455238,-500.0,0.00042191,7]
[313327999,1707161455247,-579.22,0.00042191,7]
[313328000,1707161455256,-500.0,0.00042191,7]
[313328001,1707161455265,-500.0,0.00042191,7]
[313328002,1707161455273,-524.88,0.00042191,7]
[313328003,1707161455283,-500.0,0.00042191,7]
[313328004,1707161455292,-343.45472497,0.00042191,30]
[313328005,1707161455302,-907.38,0.00042191,7]
[313328006,1707161455311,-195.25492573,0.00042191,7]
[313328007,1707161455320,-793.66,0.00042191,7]
[313328008,1707161455329,-828.69,0.00042191,2]
[313328009,1707161455338,-500.0,0.00042191,20]
[313328010,1707161455347,-500.0,0.00042191,7]
[313328011,1707161455356,-500.0,0.00042191,7]
[313328012,1707161455366,-500.0,0.00042191,7]
[313328013,1707161455375,-760.42,0.00042191,7]
[313328014,1707161455384,-158.22647475,0.00042191,7]
[313328015,1707161455393,-500.0,0.00042191,7]
[313328016,1707161455402,-500.0,0.00042191,7]
[313328017,1707161455411,-500.0,0.00042191,7]
[313328018,1707161455420,-500.0,0.00042191,7]
[313328019,1707161455429,-500.0,0.00042191,7]
[313328020,1707161455438,-500.0,0.00042191,7]
[313328021,1707161455447,-500.0,0.00042191,7]
[313328022,1707161455456,-500.0,0.00042191,7]
[313328023,1707161455465,-500.0,0.00042191,7]
[313328024,1707161455474,-500.0,0.00042191,7]
[313328025,1707161455483,-500.0,0.00042191,7]
[313328026,1707161455492,-500.0,0.00042191,7]
[313328027,1707161455501,-330.13139626,0.00042191,7]
[313328028,1707161455510,-500.0,0.00042191,7]
[313328029,1707161455519,-500.0,0.00042191,7]
[313328030,1707161455528,-500.0,0.00042191,2]
[313328031,1707161455537,-500.0,0.00042191,7]
[313328032,1707161455546,-1171.91,0.00042191,7]
[313328033,1707161455556,-500.0,0.00042191,7]
[313328034,1707161455565,-500.0,0.00042191,7]
[313328035,1707161455574,-500.0,0.00042191,7]
[313328036,1707161455583,-1193.87,0.00042191,7]
[313328037,1707161455593,-272.48,0.00042191,7]
[313328038,1707161455602,-500.0,0.00042191,7]
[313328039,1707161455611,-500.0,0.00042191,7]
[313328040,1707161455621,-500.0,0.00042191,7]
[313328041,1707161455629,-579.7,0.00042191,7]
[313328042,1707161455638,-500.0,0.00042191,7]
[313328043,1707161455647,-500.0,0.00042191,7]
[313328044,1707161455656,-1047.76,0.00042191,7]
[313328045,1707161455665,-500.0,0.00042191,7]
[313328046,1707161455674,-603.42,0.00042191,7]
[313328047,1707161455683,-500.0,0.00042191,7]
[313328048,1707161455692,-500.0,0.00042191,7]
[313328049,1707161455700,-500.0,0.00042191,7]
[313328050,1707161455710,-1195.13,0.00042191,7]
[313328051,1707161455719,-538.14,0.00042191,7]
[313328052,1707161455729,-151.85247883,0.00042191,7]
[313328053,1707161455738,-580.02,0.00042191,7]
[313328054,1707161455747,-500.0,0.00042191,7]
[313328055,1707161455757,-968.9,0.00042191,7]
[313328056,1707161455767,-500.0,0.00042191,7]
[313328057,1707161455776,-500.0,0.00042191,7]
[313328058,1707161455785,-576.97,0.00042191,7]
[313328059,1707161455794,-500.0,0.00042191,7]
[313328060,1707161455804,-500.0,0.00042191,7]
[313328061,1707161455813,-500.0,0.00042191,7]
[313328062,1707161455822,-599.06684563,0.00042191,7]
[313328063,1707161455832,-500.0,0.00042191,2]
[313328064,1707161455841,-500.0,0.00042191,7]
[313328065,1707161455850,-500.0,0.00042191,7]
[313328066,1707161455859,-500.0,0.00042191,7]
[313328067,1707161455869,-928.39,0.00042191,7]
[313328068,1707161455878,-500.0,0.00042191,7]
[313328069,1707161455886,-500.0,0.00042191,7]
[313328070,1707161455896,-898.8,0.00042191,7]
[313328071,1707161455905,-264.28600153,0.00042191,7]
[313328072,1707161455914,-1227.72,0.00042191,7]
[313328073,1707161455923,-500.0,0.00042191,7]
[313328074,1707161455932,-500.0,0.00042191,7]
[313328075,1707161455942,-961.96,0.00042191,7]
[313328076,1707161455951,-856.15,0.00042191,7]
[313328077,1707161455960,-1000.0,0.00042191,7]
[313328078,1707161455969,-500.0,0.00042191,7]
[313328079,1707161455979,-610.16,0.00042191,7]
[313328080,1707161455987,-500.0,0.00042191,7]
[313328081,1707161455996,-4208.35,0.00042191,7]
[313328082,1707161456005,-500.0,0.00042191,7]
[313328083,1707161456015,-500.0,0.00042191,7]
[313328084,1707161456024,-1147.57,0.00042191,7]
[313328085,1707161456034,-2424.94,0.00042191,7]
[313328086,1707161456043,-719.89,0.00042191,7]
[313328087,1707161456053,-500.0,0.00042191,7]
[313328088,1707161456062,-872.38,0.00042191,7]
[313328089,1707161456071,-1792.12,0.00042191,7]
[313328090,1707161456081,-500.0,0.00042191,7]
[313328091,1707161456093,-500.0,0.00042191,7]
[313328092,1707161456103,-500.0,0.00042191,7]
[313328093,1707161456112,-500.0,0.00042191,7]
[313328094,1707161456122,-500.0,0.00042191,7]
[313328095,1707161456132,-3479.72,0.00042191,7]
[313328096,1707161456141,-524.2,0.00042191,7]
[313328097,1707161456150,-569.30668706,0.00042191,7]
[313328098,1707161456161,-752.35,0.00042191,7]
[313328099,1707161456171,-500.0,0.00042191,7]
[313328100,1707161456180,-500.0,0.00042191,7]
[313328101,1707161456189,-663.67,0.00042191,7]
[313328102,1707161456199,-614.92,0.00042191,7]
[313328103,1707161456208,-689.61,0.00042191,7]
[313328104,1707161456217,-500.0,0.00042191,7]
[313328105,1707161456226,-500.0,0.00042191,7]
[313328106,1707161456235,-1447.39,0.00042191,7]
[313328107,1707161456244,-500.0,0.00042191,7]
[313328108,1707161456254,-2445.56,0.00042191,7]
[313328109,1707161456263,-1389.3,0.00042191,7]
[313328110,1707161456273,-500.0,0.00042191,7]
[313328111,1707161456282,-2095.64,0.00042191,7]
[313328112,1707161456291,-500.0,0.00042191,7]
[313328113,1707161456300,-500.0,0.00042191,7]
[313328114,1707161456310,-500.0,0.00042191,7]
[313328115,1707161456319,-500.0,0.00042191,7]
[313328116,1707161456328,-1082.37,0.00042191,7]
[313328117,1707161456338,-500.0,0.00042191,7]
[313328118,1707161456347,-2824.19,0.00042191,7]
[313328119,1707161456357,-903.41,0.00042191,7]
[313328120,1707161456366,-1032.35,0.00042191,7]
[313328121,1707161456375,-500.0,0.00042191,7]
[313328122,1707161456384,-4354.94,0.00042191,7]
[313328123,1707161456393,-500.0,0.00042191,7]
[313328124,1707161456402,-580.20525474,0.00042191,7]
[313328125,1707161456412,-500.0,0.00042191,7]
[313328126,1707161456421,-500.0,0.00042191,7]
[313328127,1707161456430,-394.04350548,0.00042191,7]
[313328128,1707161456439,-500.0,0.00042191,7]
[313328129,1707161456448,-668.9,0.00042191,7]
[313328130,1707161456457,-607.08,0.00042191,7]
[313328131,1707161456467,-996.39,0.00042191,7]
[313328132,1707161456478,-500.0,0.00042191,7]
[313328133,1707161456488,-500.0,0.00042191,7]
[313328134,1707161456497,-500.0,0.00042191,7]
[313328135,1707161456507,-568.52,0.00042191,7]
[313328136,1707161456517,-500.0,0.00042191,7]
[313328137,1707161456526,-2415.07,0.00042191,7]
[313328138,1707161456535,-500.0,0.00042191,7]
[313328139,1707161456545,-500.0,0.00042191,7]
[313328140,1707161456554,-169.10122316,0.00042191,7]
[313328141,1707161456564,-1484.19,0.00042191,7]
[313328142,1707161456574,-831.07,0.00042191,7]
[313328143,1707161456584,-543.21,0.00042191,7]
[313328144,1707161456593,-3180.88,0.00042191,7]
[313328145,1707161456602,-784.02,0.00042191,7]
[313328146,1707161456612,-1184.54,0.00042191,7]
[313328147,1707161456622,-578.68000001,0.00042191,7]
[313328148,1707161456631,-500.0,0.00042191,7]
[313328149,1707161456640,-1320.35,0.00042191,7]
[313328150,1707161456649,-520.58,0.00042191,7]
[313328151,1707161456659,-500.0,0.00042191,7]
[313328152,1707161456668,-500.0,0.00042191,7]
[313328153,1707161456678,-500.0,0.00042191,7]
[313328154,1707161456688,-500.0,0.00042191,7]
[313328155,1707161456698,-612.53,0.00042191,7]
[313328156,1707161456708,-500.0,0.00042191,7]
[313328157,1707161456718,-500.0,0.00042191,7]
[313328158,1707161456732,-500.0,0.00042191,7]
[313328159,1707161456741,-580.1,0.00042191,7]
[313328160,1707161456751,-727.02,0.00042191,7]
[313328161,1707161456760,-500.0,0.00042191,7]
[313328162,1707161456770,-500.0,0.00042191,7]
[313328163,1707161456779,-500.0,0.00042191,7]
[313328164,1707161456789,-648.1,0.00042191,7]
[313328165,1707161456798,-500.0,0.00042191,7]
[313328166,1707161456807,-9649.71,0.00042191,7]
[313328167,1707161456817,-500.0,0.00042191,7]
[313328168,1707161456827,-500.0,0.00042191,7]
[313328169,1707161456837,-4246.7,0.00042191,7]
[313328170,1707161456847,-500.0,0.00042191,7]
[313328171,1707161456856,-5144.37,0.00042191,7]
[313328172,1707161456865,-575.28,0.00042191,7]
[313328173,1707161456875,-185.18358767,0.00042191,7]
[313328174,1707161456884,-531.93,0.00042191,7]
[313328175,1707161456894,-1687.02,0.00042191,7]
[313328176,1707161456904,-699.82,0.00042191,7]
[313328177,1707161456914,-500.0,0.00042191,7]
[313328178,1707161456924,-828.59,0.00042191,7]
[313328179,1707161456933,-899.71,0.00042191,7]
[313328180,1707161456942,-500.0,0.00042191,7]
[313328181,1707161456951,-536.40114462,0.00042191,7]
[313328182,1707161456960,-500.0,0.00042191,7]
[313328183,1707161456969,-500.0,0.00042191,7]
[313328184,1707161456980,-701.7,0.00042191,7]
[313328185,1707161456989,-500.0,0.00042191,7]
[313328186,1707161456998,-500.0,0.00042191,7]
[313328187,1707161457007,-1300.69,0.00042191,7]
[313328188,1707161457017,-830.8,0.00042191,7]
[313328189,1707161457026,-530.48,0.00042191,7]
[313328190,1707161457035,-500.0,0.00042191,7]
[313328191,1707161457045,-500.0,0.00042191,7]
[313328192,1707161457055,-500.0,0.00042191,2]
[313328193,1707161457065,-1935.78,0.00042191,7]
[313328194,1707161457074,-623.74193737,0.00042191,7]
[313328195,1707161457087,-2018.2,0.00042191,7]
[313328196,1707161457097,-792.37,0.00042191,7]
[313328197,1707161457107,-1268.7,0.00042191,7]
[313328198,1707161457117,-610.86,0.00042191,7]
[313328199,1707161457127,-599.22058183,0.00042191,7]
[313328200,1707161457136,-500.0,0.00042191,7]
[313328201,1707161457145,-500.0,0.00042191,7]
[313328202,1707161457155,-500.0,0.00042191,7]
[313328203,1707161457166,-500.0,0.00042191,7]
[313328204,1707161457175,-500.0,0.00042191,7]
[313328205,1707161457185,-650.59,0.00042191,7]
[313328206,1707161457194,-775.4,0.00042191,7]
[313328207,1707161457203,-500.0,0.00042191,7]
[313328208,1707161457212,-500.0,0.00042191,7]
[313328209,1707161457223,-917.32,0.00042191,7]
[313328210,1707161457232,-1038.49,0.00042191,7]
[313328211,1707161457242,-500.0,0.00042191,7]
[313328212,1707161457252,-500.0,0.00042191,7]
[313328213,1707161457262,-609.62,0.00042191,7]
[313328214,1707161457271,-500.0,0.00042191,7]
[313328215,1707161457281,-670.92,0.00042191,7]
[313328216,1707161457290,-500.0,0.00042191,7]
[313328217,1707161457301,-1000.0,0.00042191,7]
[313328218,1707161457311,-1000.0,0.00042191,7]
[313328219,1707161457320,-1314.85,0.00042191,5]
[313328220,1707161457330,-1809.16,0.00042191,7]
[313328221,1707161457340,-1499.56,0.00042191,7]
[313328222,1707161457349,-1573.94,0.00042191,7]
[313328223,1707161457359,-834.46,0.00042191,7]
[313328224,1707161457368,-1580.41,0.00042191,7]
[313328225,1707161457377,-500.0,0.00042191,7]
[313328226,1707161457386,-500.0,0.00042191,7]
[313328227,1707161457396,-500.0,0.00042191,7]
[313328228,1707161457405,-500.0,0.00042191,7]
[313328229,1707161457415,-500.0,0.00042191,7]
[313328230,1707161457424,-500.0,0.00042191,7]
[313328231,1707161457433,-1788.86,0.00042191,7]
[313328232,1707161457445,-665.49,0.00042191,7]
[313328233,1707161457454,-500.0,0.00042191,7]
[313328234,1707161457464,-500.0,0.00042191,2]
[313328235,1707161457474,-500.0,0.00042191,7]
[313328236,1707161457483,-500.0,0.00042191,7]
[313328237,1707161457493,-6953.52,0.00042191,7]
[313328238,1707161457502,-500.0,0.00042191,7]
[313328239,1707161457511,-594.23,0.00042191,7]
[313328240,1707161457520,-500.0,0.00042191,7]
[313328241,1707161457530,-643.79,0.00042191,7]
[313328242,1707161457539,-1787.48,0.00042191,7]
[313328243,1707161457551,-626.24,0.00042191,7]
[313328244,1707161457562,-1058.6,0.00042191,5]
[313328245,1707161457571,-500.0,0.00042191,7]
[313328246,1707161457581,-12499.48,0.00042191,7]
[313328247,1707161457735,-1008.11,0.00042191,7]
[313328248,1707161457745,-500.0,0.00042191,7]
[313328249,1707161457755,-150.0,0.00042192,2]
[313328250,1707161457765,-150.0,0.00042192,2]
[313328251,1707161457774,-150.0,0.00042192,2]
[313328252,1707161457785,-150.0,0.00042192,2]
[313328253,1707161457795,-158.53,0.00042192,2]
[313328254,1707161457805,-157.86,0.00042192,2]
[313328255,1707161457815,-1000.0,0.000422,38]
[313328256,1707161457825,-522.68164446,0.00042247,2]
[313328257,1707161457835,-2607.76882796,0.00042247,2]
[313328258,1707161457844,-734.20940028,0.00042247,2]
[313328259,1707161457854,-233.31667762,0.00042247,2]
[313328260,1707161457863,-7381.05323774,0.00042247,2]
[313328261,1707161457873,-331.82563408,0.00042299,3]
[313328262,1707161457882,-242.85775935,0.00042299,3]
[313328263,1707161457892,-15204.3,0.000423,30]
[313328264,1707161457901,-2046.05291049,0.00042307,4]
[313328265,1707161457911,-399.0,0.0004231,2]
[313328266,1707161457920,-4456.02403939,0.0004234,30]
[313328267,1707161457930,-242.85775935,0.00042346,3]
[313328268,1707161457940,-331.82563408,0.00042346,3]
[313328269,1707161457949,-17375.60164238,0.00042347,2]
[313328270,1707161457958,-12317.12365035,0.00042347,2]
[313328271,1707161457967,-1843.99626821,0.00042347,2]
[313328272,1707161457977,-643.0,0.00042347,2]
[313328273,1707161457986,-931.03418206,0.00042347,2]
[313328274,1707161457995,-10737.69524547,0.00042347,2]
[313328275,1707161458004,-8438.6522013,0.00042347,2]
[313328276,1707161458014,-29586.21692636,0.00042347,2]
[313328277,1707161458023,-549.91950974,0.00042347,2]
[313328278,1707161458033,-766.22588246,0.00042347,2]
[313328279,1707161458043,-272.21969322,0.00042347,2]
[313328280,1707161458053,-8821.70986527,0.00042347,2]
[313328281,1707161458062,-550.0,0.00042347,2]
[313328282,1707161458071,-1003.08460237,0.00042347,2]
[313328283,1707161458081,-10280.0223225,0.00042347,2]
[313328284,1707161458092,-162636.35938326,0.00042347,2]
[313328285,1707161458101,-14360.86723211,0.00042347,2]
[313328286,1707161458111,-6000.0,0.00042347,2]
[313328287,1707161458120,-697.62819391,0.00042347,2]
[313328288,1707161458131,-14051.82879363,0.00042347,2]
[313328289,1707161458140,-342.2934663,0.00042347,2]
[313328290,1707161458150,-200.0,0.00042347,2]
[313328291,1707161458160,-627.46698088,0.00042347,2]
[313328292,1707161458169,-601.82488483,0.00042347,2]
[313328293,1707161458179,-206.35757889,0.00042347,2]
[313328294,1707161458190,-145311.34117374,0.00042347,2]
[313328295,1707161458201,-431.46063396,0.00042347,2]
[313328296,1707161458210,-1025.07448925,0.00042347,2]
[313328297,1707161458220,-20412.63376337,0.00042347,2]
[313328298,1707161458231,-2500.0,0.00042347,2]
[313328299,1707161458241,-556.69409555,0.00042347,2]
[313328300,1707161458251,-26707.96193655,0.00042347,2]
[313328301,1707161458261,-2286.64435487,0.00042347,2]
[313328302,1707161458271,-231.33144087,0.00042347,2]
[313328303,1707161458281,-518.00931086,0.00042347,2]
[313328304,1707161458292,-169242.27186022,0.00042347,2]
[313328305,1707161458301,-500.0,0.00042347,120]
[313328306,1707161458311,-437671.99420074,0.00042347,2]
[313328307,1707161458321,-1000.0,0.00042347,2]
[313328308,1707161458331,-155.48802255,0.00042347,2]
[313328309,1707161458340,-6867.90889018,0.00042347,30]
[313328310,1707161458350,-836.41208319,0.00042347,120]
[313328311,1707161458360,-225.21973553,0.00042347,30]
[313328312,1707161458370,-12148.66892043,0.00042347,10]
[313328313,1707161458379,-302.59190187,0.00042347,13]
[313328314,1707161458389,-307.94151519,0.00042347,30]
[313328315,1707161458399,-320.82963319,0.00042347,30]
[313328316,1707161458409,-186.34156549,0.00042347,30]
[313328317,1707161458418,-219.47347032,0.00042347,30]
[313328318,1707161458428,-185.29959383,0.00042347,30]
[313328319,1707161458438,-2549.4134749,0.00042347,2]
[313328320,1707161458448,-250024.929999,0.00042347,30]
[313328321,1707161458458,-82969.82313677,0.00042347,2]
[313328322,1707161458468,-8698.0,0.00042347,7]
[313328323,1707161458478,-944.98329075,0.00042347,120]
[313328324,1707161458488,-6630.0,0.00042347,5]
[313328325,1707161458498,-7000.0,0.00042347,46]
[313328326,1707161458509,-1529.61846744,0.00042347,2]
[313328327,1707161458519,-693.75647464,0.00042347,2]
[313328328,1707161458529,-772.31978435,0.00042347,120]
[313328329,1707161458539,-5391.86457248,0.00042347,45]
[313328330,1707161458549,-50238.483,0.00042347,7]
[313328331,1707161458559,-1736.557778,0.00042347,30]
[313328332,1707161458568,-1927.057136,0.00042347,30]
[313328333,1707161458578,-168.39931278,0.00042347,120]
[313328334,1707161458589,-168.39931278,0.00042347,120]
[313328335,1707161458600,-4023.16289277,0.00042347,2]
[313328336,1707161458610,-1724.32942263,0.00042446,4]
[313328337,1707161458620,-816.32386975,0.00042446,3]
[313328338,1707161458630,-2800.28868729,0.00042446,4]
[313328339,1707161458639,-1000.0,0.00042446,15]
[313328340,1707161458649,-268.00381601,0.00042446,2]
[313328341,1707161458658,-1000.0,0.00042446,15]
[313328342,1707161458667,-3819.17060907,0.00042446,4]
[313328343,1707161458679,-190.95853045,0.00042446,2]
[313328344,1707161458688,-815.78175073,0.00042481,7]
[313328345,1707161458698,-177.27753846,0.00042526,2]
[313328346,1707161458707,-7003.64418217,0.00042593,4]
[313328347,1707161458716,-8876.94,0.000426,7]
[313328348,1707161458726,-153.48,0.000427,7]
[313328349,1707161458735,-500.0,0.00042739,7]
[313328350,1707161458745,-500.0,0.00042739,7]
[313328351,1707161458754,-500.0,0.00042739,7]
[313328352,1707161458763,-500.0,0.00042739,7]
[313328353,1707161458773,-579.22,0.00042739,7]
[313328354,1707161458782,-500.0,0.00042739,7]
[313328355,1707161458791,-347.96385222,0.00042739,7]
[313328356,1707161458801,-524.88,0.00042739,7]
[313328357,1707161458810,-907.38,0.00042739,7]
[313328358,1707161458819,-793.66,0.00042739,7]
[313328359,1707161458828,-828.69,0.00042739,2]
[313328360,1707161458838,-500.0,0.00042739,20]
[313328361,1707161458848,-500.0,0.00042739,7]
[313328362,1707161458857,-500.0,0.00042739,7]
[313328363,1707161458867,-500.0,0.00042739,7]
[313328364,1707161458876,-760.42,0.00042739,7]
[313328365,1707161458885,-500.0,0.00042739,7]
[313328366,1707161458894,-500.0,0.00042739,7]
[313328367,1707161458903,-500.0,0.00042739,7]
[313328368,1707161458913,-500.0,0.00042739,7]
[313328369,1707161458923,-500.0,0.00042739,7]
[313328370,1707161458934,-500.0,0.00042739,7]
[313328371,1707161458943,-453.16076893,0.00042739,7]
[313328372,1707161458954,-500.0,0.00042739,7]
[313328373,1707161458964,-500.0,0.00042739,7]
[313328374,1707161458974,-607.26449072,0.00042739,7]
[313328375,1707161458984,-500.0,0.00042739,7]
[313328376,1707161458993,-500.0,0.00042739,7]
[313328377,1707161459002,-500.0,0.00042739,7]
[313328378,1707161459011,-500.0,0.00042739,2]
[313328379,1707161459021,-500.0,0.00042739,7]
[313328380,1707161459030,-1171.91,0.00042739,7]
[313328381,1707161459040,-500.0,0.00042739,7]
[313328382,1707161459049,-500.0,0.00042739,7]
[313328383,1707161459059,-500.0,0.00042739,7]
[313328384,1707161459069,-1193.87,0.00042739,7]
[313328385,1707161459078,-581.32,0.00042739,7]
[313328386,1707161459088,-577.86,0.00042739,7]
[313328387,1707161459100,-579.7,0.00042739,7]
[313328388,1707161459110,-583.71,0.00042739,7]
[313328389,1707161459121,-399.93066433,0.00042739,7]
[313328390,1707161459132,-1047.76,0.00042739,7]
[313328391,1707161459141,-500.0,0.00042739,7]
[313328392,1707161459151,-500.0,0.00042739,7]
[313328393,1707161459160,-500.0,0.00042739,7]
[313328394,1707161459170,-1195.13,0.00042739,7]
[313328395,1707161459180,-500.0,0.00042739,7]
[313328396,1707161459190,-968.9,0.00042739,7]